Cogmind - Beta 15 @@@ ROGUE MODE // 2025.10.02 @ 21:44:06 Player: Grey Result: Self-destructed Performance ------------- Evolutions (4) 2000 Regions Visited (6) 1200 Robots Destroyed (5) 25 Value Destroyed (188) 188 Prototype IDs (5) 100 Alien Tech Used (0) 0 Bonus (523) 523 TOTAL SCORE: 4036 Bonus ------- Follower Combat Kills 259 Met Imprinter 300 Friendly Fire -36 Cogmind --------- Core Integrity 583/850 Matter 300/300 Energy 100/100 System Corruption 0% Temperature Cool (0) Movement Core (400) Ox7 Location -6/Factory Parts ------- > --- POWER (2) -------- (None) > --- PROPULSION (3) --- (None) > --- UTILITY (7) ------ Large Storage Unit Experimental Signal Interpreter 0b10 Decoder Chip [Generic] Advanced Targeting Computer Experimental Armor Integrity Analyzer Experimental Thermal Shield > --- WEAPON (3) ------- (None) > --- INVENTORY (15) --- Enhanced Optical Array Experimental Signal Interpreter Advanced Terrain Scanner Advanced Terrain Scan Processor 0b10 Decoder Chip [Skirmisher] Advanced Targeting Computer Advanced Target Analyzer Experimental Armor Integrity Analyzer ECM Suite Makeshift ECM Suite System Restoration Module Peak State ------------ > --- POWER ------------ Ion Engine Ion Engine > --- PROPULSION ------- Light Treads Light Treads Improved Treads > --- UTILITY ---------- Large Storage Unit Experimental Signal Interpreter 0b10 Decoder Chip [Generic] Advanced Targeting Computer Experimental Armor Integrity Analyzer Layered Medium Armor Plating Experimental Thermal Shield > --- WEAPON ----------- Light Assault Rifle Gauss Rifle > --- INVENTORY -------- Experimental Signal Interpreter Advanced Terrain Scanner Advanced Terrain Scan Processor 0b10 Decoder Chip [Skirmisher] Advanced Targeting Computer Advanced Target Analyzer Experimental Armor Integrity Analyzer ECM Suite Makeshift ECM Suite Improved Utility Shielding System Restoration Module [Rating: 57] Favorites ----------- Power Ion Engine Engine Ion Engine Propulsion Light Treads Treads Light Treads Utility Large Storage Unit Device ECM Suite Storage Large Storage Unit Processor Experimental Armor Integrity Analyzer Protection Layered Medium Armor Plating Weapon Light Assault Rifle Ballistic Gun Light Assault Rifle Build | -11 -10 -9 -9 -7 -6 -6 ------- Run | Yrd Mat Mat Min Zio Pro Fac Slots Evolved 8 | . . 2 . . . 6 Power 1 | . . . . . . 1 Propulsion 1 | . . 1 . . . . Utility 5 | . . 1 . . . 4 Weapon 1 | . . . . . . 1 Parts Attached 20 | 6 1 3 . 4 . 6 Power 3 | 2 . . . . . 1 Engine 3 | 2 . . . . . 1 Core . | . . . . . . . Reactor . | . . . . . . . Propulsion 3 | 2 . 1 . . . . Treads 3 | 2 . 1 . . . . Leg . | . . . . . . . Wheel . | . . . . . . . Hover . | . . . . . . . Flight . | . . . . . . . Utility 11 | 1 . 2 . 3 . 5 Device 3 | . . 1 . 1 . 1 Storage 2 | 1 . 1 . . . . Processor 4 | . . . . 2 . 2 Hackware . | . . . . . . . Protection 2 | . . . . . . 2 Artifact . | . . . . . . . Weapon 3 | 1 1 . . 1 . . Energy Gun . | . . . . . . . Energy Cannon . | . . . . . . . Ballistic Gun 3 | 1 1 . . 1 . . Ballistic Cannon . | . . . . . . . Launcher . | . . . . . . . Special Weapon . | . . . . . . . Impact Weapon . | . . . . . . . Slashing Weapon . | . . . . . . . Piercing Weapon . | . . . . . . . Special Melee Weapon . | . . . . . . . Unidentified Prototypes 3 | . . . . 2 . 1 Parts Lost 9 | . . . . . . 9 Power 2 | . . . . . . 2 Propulsion 3 | . . . . . . 3 Utility 2 | . . . . . . 2 Weapon 2 | . . . . . . 2 Highest Loss Streak 4 | . . . . . . 4 To Critical Strikes . | . . . . . . . Average Backups 9 | 1 1 1 1 10 14 11 Power . | . 1 1 1 1 1 . Propulsion . | . . . . . . . Utility 7 | . . . . 8 12 11 Weapon . | . . . . . . . Tool/Special . | . . . . . . . Unused Backups 12 | . . . . 2 2 8 Power . | . . . . . . . Propulsion . | . . . . . . . Utility 10 | . . . . 1 1 8 Weapon 2 | . . . . 1 1 . Tool/Special . | . . . . . . . Average Slot Usage (%) 92 | . 78 83 88 97 100 79 Engine 10 | . 14 11 11 11 11 8 Treads 30 | . 28 31 33 33 33 16 Device 3 | . . 7 11 2 . 5 Storage 10 | . 14 11 11 11 11 6 Processor 15 | . . . . 16 22 25 Ballistic Gun 20 | . 21 22 22 22 22 9 Peak Build Rating 57 | 5 6 9 9 36 36 57 Average Rating 27 | 3 5 8 9 28 35 51 On Entrance 14 | . 5 6 9 9 36 36 Naked Turns . | . . . . . . . Heaviest Build 45 | 11 12 29 29 35 30 45 Greatest Support 63 | 40 40 63 63 63 63 63 Greatest Overweight (x) 7 | . . . . . . 7 Average Overweight (x) . | . . . . . . . Largest Inventory Capacity 15 | 8 8 15 15 15 15 15 Average Capacity 14 | 7 8 11 15 15 15 15 Most Carried 15 | 5 2 2 2 15 15 14 Average Carried 9 | 1 1 1 1 11 14 11 Final Capacity 15 | 8 8 15 15 15 15 15 Final Carried 15 | 1 1 1 2 15 15 11 Class Distribution -------------------- 100% | Mutant Dominant Class ---------------- Mutant | -10/Materials Mutant | -9/Materials Mutant | -9/Mines Mutant | -7/Zion Mutant | -6/Proximity Caves Mutant | -6/Factory Resources | -11 -10 -9 -9 -7 -6 -6 ----------- Run | Yrd Mat Mat Min Zio Pro Fac Matter Collected 511 | 268 . . 46 60 10 127 Remotely . | . . . . . . . Salvage Created 257 | 66 . . . . 12 179 Parts 10 | 2 . . . . 3 5 Haulers Intercepted . | . . . . . . . Recyclers Shooed 1 | . . . . . . 1 Parts Field Recycled . | . . . . . . . Retrieved Matter . | . . . . . . . Parts Self-Destructed 16 | . . . . . 16 . Prevented . | . . . . . . . Kills | -11 -10 -9 -9 -7 -6 -6 ------- Run | Yrd Mat Mat Min Zio Pro Fac Combat Hostiles Destroyed 4 | . . . . . 1 3 Guns 4 | . . . . . 1 3 Classes Destroyed 4 | 1 . . . . 1 2 Recycler 1 | 1 . . . . . . Drone 1 | . . . . . 1 . Grunt 2 | . . . . . . 2 Sentry 1 | . . . . . . 1 Best Kill Streak 2 | 1 . . . . 1 2 Combat Bots Only 2 | . . . . . 1 2 Max Kills in Single Turn 1 | 1 . . . . 1 1 Gunslinging . | . . . . . . . Exploded . | . . . . . . . Melee . | . . . . . . . Uniques/NPCs Destroyed . | . . . . . . . Combat | -11 -10 -9 -9 -7 -6 -6 -------- Run | Yrd Mat Mat Min Zio Pro Fac Hostile Shots Fired 191 | . 6 24 . . 8 153 Missed 62 | . 4 9 . . 2 47 Hits 129 | . 2 15 . . 6 106 Melee 2 | . . 2 . . . . Projectile 127 | . 2 13 . . 6 106 AOE 3 | . . . . . 1 2 Critical Strikes 1 | . . 1 . . . . Damage Taken 1438 | . 29 239 . . 162 1008 Core 335 | . 18 15 . . 35 267 Absorbed by Shields . | . . . . . . . Redirected to Shielding 59 | . . . . . . 59 Ignored by Resistances 224 | . . . . . . 224 Core Remaining (%) 93 | 100 92 . . . 87 . Volleys Fired 50 | 8 3 . . . 2 37 Largest 2 | 1 2 . . . 2 2 Hottest 48 | 20 40 . . . 48 48 Shots Fired 70 | 8 6 . . . 4 52 Gun 70 | 8 6 . . . 4 52 Cannon . | . . . . . . . Launcher . | . . . . . . . Special . | . . . . . . . Kinetic 70 | 8 6 . . . 4 52 Thermal . | . . . . . . . Explosive . | . . . . . . . Electromagnetic . | . . . . . . . Robot Hit Streak 17 | 3 1 . . . 1 17 Robot Miss Streak 4 | 3 1 . . . 2 4 Penetration Max 1 | . . . . . . 1 Secondary Targets 1 | . . . . . . 1 Max Gunslinging Chain 1 | . . . . . . 1 Shots Hit Robots 52 | 4 3 . . . 1 44 Core Hits 21 | 3 1 . . . 1 16 Critical Kills 1 | . . . . . . 1 Critical Parts Destroyed . | . . . . . . . Critical Strikes 1 | . . . . . . 1 Destroy 1 | . . . . . . 1 Melee Attacks . | . . . . . . . Impact . | . . . . . . . Slashing . | . . . . . . . Piercing . | . . . . . . . Sneak Attacks . | . . . . . . . Combat Hostiles . | . . . . . . . Follow-up Attacks . | . . . . . . . Damage Inflicted 462 | 30 35 . . . 19 378 Guns 462 | 30 35 . . . 19 378 Cannons . | . . . . . . . Explosions . | . . . . . . . Melee . | . . . . . . . Ramming . | . . . . . . . Kinetic 462 | 30 35 . . . 19 378 Thermal . | . . . . . . . Explosive . | . . . . . . . Electromagnetic . | . . . . . . . Impact . | . . . . . . . Slashing . | . . . . . . . Piercing . | . . . . . . . Highest Corruption 1 | . . . . . 1 . Average Corruption 1 | . . . . . 1 . Corruption Purged . | . . . . . . . Corruption Blocked . | . . . . . . . Effects 2 | . . . . . 2 . Message Errors 2 | . . . . . 2 . Overload Shots . | . . . . . . . Overflow Damage . | . . . . . . . Projectiles . | . . . . . . . Explosions . | . . . . . . . Melee . | . . . . . . . Knockbacks . | . . . . . . . Impact . | . . . . . . . Kinetic . | . . . . . . . Secondary . | . . . . . . . Self-Inflicted Damage . | . . . . . . . Shots . | . . . . . . . Rammed . | . . . . . . . Targets Rammed . | . . . . . . . Kicked . | . . . . . . . Crushed . | . . . . . . . Highest Temperature 53 | . . 7 . . 2 53 Average Temperature 12 | . . 7 . . 1 13 Received Heat Transfer 429 | . 15 87 . . 21 306 Siege Activations . | . . . . . . . Martial Activations . | . . . . . . . Shielding Activations . | . . . . . . . Robots Disrupted . | . . . . . . . Combat Hostiles . | . . . . . . . Robots Corrupted . | . . . . . . . Combat Hostiles . | . . . . . . . Parts Fried . | . . . . . . . Impact Corruptions . | . . . . . . . Robots Melted . | . . . . . . . Combat Hostiles . | . . . . . . . Parts Melted . | . . . . . . . Heat Transferred . | . . . . . . . Parts Sabotaged . | . . . . . . . Parts Stolen . | . . . . . . . Parts Stripped . | . . . . . . . Power Chain Reactions . | . . . . . . . Alert | -11 -10 -9 -9 -7 -6 -6 ------- Run | Yrd Mat Mat Min Zio Pro Fac Maximum Alert Level 1 | . . . . . . 1 Low Security (%) 70 | 100 100 100 100 . . 20 Level 1 29 | . . . . . . 79 Level 2 . | . . . . . . . Level 3 . | . . . . . . . Level 4 . | . . . . . . . Level 5 . | . . . . . . . High Security . | . . . . . . . Max Security . | . . . . . . . Peak Influence 305 | 5 . 5 . . . 305 Initial 305 | . . . . . . 305 Average 85 | . . . . . . 232 Influence Increases 758 | 5 . 5 . . 301 447 Destroy 0b10 Robot/C 260 | . . . . . 180 80 Destroy 0b10 Robot/NC 15 | 5 . . . . 10 . Destroy Leader 50 | . . . . . 30 20 Allied During Kill 86 | . . . . . 81 5 Successful Hack 13 | . . 5 . . . 8 Disable Machine 15 | . . . . . . 15 Destroy Structure 4 | . . . . . . 4 Advance Influence 300 | . . . . . . 300 Lose Combat Pursuer 15 | . . . . . . 15 Influence Decreases 638 | 5 . 5 . . 292 336 Entered New Map 4 | . . . . . . 4 Time Decay 504 | 5 . 5 . . 272 222 Lost Part 90 | . . . . . . 90 Lost Ally 40 | . . . . . 20 20 Squads Dispatched 2 | . . . . . . 2 Investigation . | . . . . . . . Extermination 1 | . . . . . . 1 Reinforcement . | . . . . . . . Assault . | . . . . . . . Garrison 1 | . . . . . . 1 Intercept . | . . . . . . . Searches Triggered . | . . . . . . . Construction Impeded . | . . . . . . . Haulers Reinforced . | . . . . . . . Active Scanning Responses . | . . . . . . . Cargo Convoy Interrupts . | . . . . . . . Stealth | -11 -10 -9 -9 -7 -6 -6 --------- Run | Yrd Mat Mat Min Zio Pro Fac Distress Signals . | . . . . . . . Communications Jammed . | . . . . . . . Distress Signals . | . . . . . . . Times Spotted 30 | . 4 6 . . 11 9 Peak Tracking Total 5 | . 3 5 . . 4 3 Tactical Retreats 3 | . . 2 . . . 1 Traps | -11 -10 -9 -9 -7 -6 -6 ------- Run | Yrd Mat Mat Min Zio Pro Fac Traps Triggered . | . . . . . . . Indirectly . | . . . . . . . Trap Hack Attempts . | . . . . . . . Triggered . | . . . . . . . Disarmed . | . . . . . . . Reprogrammed . | . . . . . . . Reused . | . . . . . . . Traps Extracted . | . . . . . . . Installed . | . . . . . . . Triggered . | . . . . . . . Machines | -11 -10 -9 -9 -7 -6 -6 ---------- Run | Yrd Mat Mat Min Zio Pro Fac Machines Disabled 1 | . . . . . . 1 Max in Single Turn . | . . . . . . . Machines Repaired . | . . . . . . . Machines Dismantled . | . . . . . . . Machines Sabotaged . | . . . . . . . Overloaded Fab Kills . | . . . . . . . Hacking | -11 -10 -9 -9 -7 -6 -6 --------- Run | Yrd Mat Mat Min Zio Pro Fac Machines Accessed 4 | . 2 1 . . . 1 Terminals 4 | . 2 1 . . . 1 Fabricators . | . . . . . . . Repair Stations . | . . . . . . . Recycling Units . | . . . . . . . Scanalyzers . | . . . . . . . Garrison Access . | . . . . . . . Total Hacks 7 | . 4 2 . . . 1 Successful 4 | . 1 2 . . . 1 Failed 3 | . 3 . . . . . Catastrophic . | . . . . . . . Database Lockouts . | . . . . . . . Manual 5 | . . . . 5 . . Terminals 7 | . 4 2 . . . 1 Fabricators . | . . . . . . . Repair Stations . | . . . . . . . Recycling Units . | . . . . . . . Scanalyzers . | . . . . . . . Garrison Access . | . . . . . . . Terminal Hacks 4 | . 1 2 . . . 1 Record 2 | . . 1 . . . 1 Prototype ID Bank 1 | . 1 . . . . . Zone Layout 1 | . . 1 . . . . Fabricator Hacks . | . . . . . . . Repair Station Hacks . | . . . . . . . Recycling Unit Hacks . | . . . . . . . Scanalyzer . | . . . . . . . Garrison Access Hacks . | . . . . . . . Unauthorized Hacks . | . . . . . . . Terminals . | . . . . . . . Fabricators . | . . . . . . . Repair Stations . | . . . . . . . Recycling Units . | . . . . . . . Scanalyzers . | . . . . . . . Garrison Access . | . . . . . . . Data Cores Recovered . | . . . . . . . Used . | . . . . . . . Hacking Detections 3 | . 1 1 . . . 1 Full Trace Events . | . . . . . . . Feedback Events . | . . . . . . . Feedback Blocked . | . . . . . . . Robot Schematics Acquired . | . . . . . . . Robots Built . | . . . . . . . Authchips . | . . . . . . . Time . | . . . . . . . Total Robot Build Rating . | . . . . . . . Part Schematics Acquired . | . . . . . . . Parts Built . | . . . . . . . Authchips . | . . . . . . . Time . | . . . . . . . Total Part Build Rating . | . . . . . . . Parts Repaired . | . . . . . . . Time . | . . . . . . . Parts Recycled . | . . . . . . . Recycled Matter . | . . . . . . . Retrieved Matter . | . . . . . . . Retrieved Components . | . . . . . . . Parts Scanalyzed . | . . . . . . . Part Schematics Acquired . | . . . . . . . Parts Damaged . | . . . . . . . Bothacking | -11 -10 -9 -9 -7 -6 -6 ------------ Run | Yrd Mat Mat Min Zio Pro Fac Used RIF Installer . | . . . . . . . Robots Hacked . | . . . . . . . Non-combat . | . . . . . . . Combat . | . . . . . . . Robot Hacks Applied . | . . . . . . . Relay Couplers Released . | . . . . . . . Fabnet Peak Effective % . | . . . . . . . Robots Rewired . | . . . . . . . Allies Hacked . | . . . . . . . Hacks Repelled . | . . . . . . . Allies | -11 -10 -9 -9 -7 -6 -6 -------- Run | Yrd Mat Mat Min Zio Pro Fac Total Allies 2 | . . . . 2 . . Largest Group 2 | . . . . 2 2 1 Highest-Rated Group 192 | . . . . 192 192 82 Highest-Rated Ally 96 | . . . . 96 96 82 Total Orders . | . . . . . . . Ally Attacks 45 | . . . . . 36 9 Total Damage 1307 | . . . . . 867 440 Kills 11 | . . . . . 10 1 Allies Corrupted . | . . . . . . . Allies Melted . | . . . . . . . Intel | -11 -10 -9 -9 -7 -6 -6 ------- Run | Yrd Mat Mat Min Zio Pro Fac Active Infowar (turns) 1301 | . . 113 259 461 . 468 Decoding 468 | . . . . . . 468 ECM 833 | . . 113 259 461 . . Robot Analysis Total . | . . . . . . . Derelict Logs Recovered 4 | . . . 1 3 . . Drone Launches . | . . . . . . . Drone Recoveries . | . . . . . . . Decoded 0b10 Intel 14 | . . . . . . 14 Items 10 | . . . . . . 10 Machines 3 | . . . . . . 3 Guards 1 | . . . . . . 1 Exploration | -11 -10 -9 -9 -7 -6 -6 ------------- Run | Yrd Mat Mat Min Zio Pro Fac Turns Passed 3833 | 86 329 148 259 1900 633 478 Spaces Moved 2120 | 53 152 89 156 1139 354 177 Core 23 | 22 . . . . . 1 Treads 2097 | 31 152 89 156 1139 354 176 Legs . | . . . . . . . Wheels . | . . . . . . . Hover . | . . . . . . . Flight . | . . . . . . . Fastest Speed 50 | 50 160 160 160 160 160 160 Average Speed 159 | 114 160 160 160 160 160 171 Slowest Speed 400 | 160 160 160 160 160 160 400 Overloaded Moves . | . . . . . . . Propulsion Burnouts . | . . . . . . . Robots Hopped . | . . . . . . . Potential Cave-ins . | . . . . . . . Cave-ins Triggered . | . . . . . . . Exploration Rate (%) 36 | 5 33 16 48 85 64 6 Regions Visited 6 Branch Regions 3 Pre-discovered Areas 4 | . . . . 4 . . Known Exits Taken 2 | . . . . 1 1 . Unknown Exits Taken 4 | 1 1 1 1 . . . Scrap Searched 7 | . . . 1 2 4 . Spaces Dug . | . . . . . . . Terrain Destroyed . | . . . . . . . Melee . | . . . . . . . Projectile . | . . . . . . . AOE . | . . . . . . . Terrain Rammed . | . . . . . . . Walls Destroyed . | . . . . . . . Machines Disabled . | . . . . . . . Actions | -11 -10 -9 -9 -7 -6 -6 --------- Run | Yrd Mat Mat Min Zio Pro Fac Total 2506 | 71 233 95 166 1217 418 306 Wait 280 | . 77 . 8 55 56 84 Move 2114 | 52 151 88 155 1138 353 177 Hop . | . . . . . . . Pick Up 32 | 5 1 3 2 14 5 2 Fast Attach 1 | 1 . . . . . . Attach 15 | 4 1 2 . 2 . 6 Detach 1 | . . . . 1 . . Swap 6 | 1 . 1 . 4 . . Drop 7 | . . 1 1 3 2 . Fire 50 | 8 3 . . . 2 37 Melee . | . . . . . . . Ram . | . . . . . . . Kick . | . . . . . . . Crush . | . . . . . . . Escape Stasis . | . . . . . . . Rewire . | . . . . . . . Trap . | . . . . . . . Miscellaneous . | . . . . . . . Route ------- -11/Scrapyard -10/Materials -9/Materials -9/Mines (discovered 2 exits: [*Mat] / *Zio) -7/Zion -6/Proximity Caves -6/Factory (discovered 1 exit: Ext) History --------- Turn | Location | Event 7 | -11/Scrapyard | Discovered new exit (range 15) 87 | -11/Scrapyard | Entered Materials 308 | -10/Materials | Build established: Mutant 392 | -10/Materials | Discovered new exit (range 15) 416 | -10/Materials | Entered another Materials area 416 | -9/Materials | Evolved 2 slots: Propulsion x1, Utility x1 464 | -9/Materials | Discovered new exit (range 14) 564 | -9/Materials | Entered Mines 720 | -9/Mines | Learned Materials stockpile data 728 | -9/Mines | Discovered new exit (range 10) 776 | -9/Mines | YI-UF0 nonchalantly dropped a Grenade Launcher on the ground 810 | -9/Mines | A Derelict revealed a hidden shortcut to a safe place 823 | -9/Mines | Entered Zion 883 | -7/Zion | Given A8's code to call for help 950 | -7/Zion | Learned 4 Factory zone layouts 1004 | -7/Zion | Learned location of Data Miner (-6) 1120 | -7/Zion | Found Prototype Processor 1123 | -7/Zion | Found Prototype Hackware 1128 | -7/Zion | Found Prototype Processor 1130 | -7/Zion | Found Prototype Processor 1139 | -7/Zion | Found Prototype Processor 1229 | -7/Zion | Learned Factory trap positions 1282 | -7/Zion | Identified Exp. Armor Integrity Analyzer (x2) 1284 | -7/Zion | Identified Exp. Signal Interpreter (x2) 1348 | -7/Zion | Enhanced Grunt warped into view, answering call for help 1355 | -7/Zion | Enhanced Grunt warped into view, answering call for help 1625 | -7/Zion | Met Imprinter 2498 | -7/Zion | Found Prototype Energy Gun 2530 | -7/Zion | Learned location of Warlord (-5) 2645 | -7/Zion | Discovered new exit (range 15) 2722 | -7/Zion | Identified exit to Proximity Caves 2723 | -7/Zion | Entered Proximity Caves 2723 | -6/Proximity Caves | Accompanied by 2 allies 2812 | -6/Proximity Caves | Found Prototype Device 2988 | -6/Proximity Caves | Spotter reported a threat 3041 | -6/Proximity Caves | Spotter reported a threat 3343 | -6/Proximity Caves | Discovered new exit (range 8) 3354 | -6/Proximity Caves | Identified exit to Factory 3356 | -6/Proximity Caves | Entered Factory 3356 | -6/Factory | Accompanied by 1 ally 3356 | -6/Factory | Evolved 6 slots: Power x1, Utility x4, Weapon x1 3357 | -6/Factory | Identified exit to Extension 3358 | -6/Factory | Loaded intel: 116 trap records 3365 | -6/Factory | Identified Exp. Thermal Shield 3593 | -6/Factory | Garrison activated, responded to threat 3718 | -6/Factory | Lost 3 parts (2p1u) 3834 | -6/Factory | Self-destructed Last Messages --------------- 03821_ Penetrated by Slug. 03821_ Lgt. Assault Rifle destroyed. 03821_ Slug penetrates Fusion Modulator. 03825_ Penetrated by Slug. 03826_ >> DECODED: Repair Station location. 03827_ Slug penetrates Fusion Modulator. 03828_ Penetrated by Slug. 03828_ Slug penetrates Wall. 03829_ Fusion Modulator explodes. 03829_ Scanalyzer disabled. 03829_ Fusion Modulator explodes. 03829_ Lgt. Treads destroyed. 03831_ Penetrated by Slug. 03831_ Slug penetrates H-66 Slayer. 03831_ Penetrated by Slug. 03834_ ALERT: Potential suspicious activity detected, Programmers report to Factory Zone 8T. 03834_ Penetrated by Slug. 03834_ Imp. Utility Shielding destroyed. Map ----- +----------------------------------------------------+ | ??????????????????????????????????????? """ """ # | | ????????????????????????????????????#?? """ """ # | | ????????????????????????????????????# + | | ????????????????????????????????????# """ """ # | | ????????????????????????????????????# """ """ + | | ????????????????????????????????????# """ """ # | | ????????????????????????????????????# # | | ????????????????????????????????????# + | | ????????????????????????????????????# % # | | ????????????????????????????????????#########+#### | | ???????????????????????#????????????????????#!#??? | | ????????????????????? #???????????????????# #### | | ???????^?????????? #??????????????????# # | | ???????????????? ;;;;;;;;;############??????# #! " | | ?????????????? ; + #??????# # " | | ?????????????? ; ;###### #??????# # " | | ????????????? ; ;#????# #??????# # " | | ????????????? ;######+######?# # | | ???????????? ; #?# # | | ??^????????? h ; " " " " " #?# # "" | | ???????????? " " " " " ### #### | | ???^???????# ! " " " " " # | | ???????=???# h " " " " " # | | ???????????# A " " " " " + | | ???????????# ; " " " " " # | | ???????????# @ ; " " " " " + | | ???????????# ; ; " " " " " # ## | | ?????????????#+##;;;; ;;;; " " " " " # #? | | ????????????? ; C # #? | | ????????????""""" ### ### # #? | | ???????????????"" ???#####?##+######+#### #? | | ??????????????? ???????????# #????# #??# #? | | ????????????? ????????????# #????# #??# #? | | ?????????????""""?????????????# #????# #??# #? | | ??????????????""??????????????# #????# #??# #? | | ????????????????????????????? ??? ??? #? | | ??????????????????????????? ? ??? ?? | | ????????????????????????? ??? ???? | | ??????????????????????? ?????????? | | ?????????????????????# ???????? | | ?????????????????????# ###########+####??????? | | ?????????????????????# ??????????????????????? | | ?????????????????????# ???????????????????????? | | ???????????????????? + ????????????????????????? | | ???????????????????? # ?????????????????????????? | | ?????????????????????# ?????????????????????????? | | ?????????????????????? ??????????????????????????? | | ?????????????????????????????????????????????????? | | ?????????????????????????????????????????????????? | | ?????????????????????????????????????????????????? | +----------------------------------------------------+ Best States ------------- Heat Dissipation 37 Energy Generation 15 Energy Capacity 400 Matter Stores 300 Matter Capacity 300 Sight Range 16 Terrain Scan Density 10 ECM Strength 2 Armor Coverage 225 Resistance: TH 30 Utility Shielding 66 Evasion (%) 50 Targeting Accuracy 8 Armor Integrity Analysis 50 Recoil Reduction 3 Item Schematics ----------------- None Robot Schematics ------------------ None Fabricated ------------ Nothing Repaired ---------- Nothing Alien Tech Used ----------------- None Achievements -------------- Help From High Places I'm Back, Baby! Challenges ------------ None Game ------ Seed BackupCobblerAirjet Manual? 0 Play Time 00:50:45 Cumulative 9.7 hours Start 2025.10.02 @ 20:48:27 End 2025.10.02 @ 21:44:06 Sessions 1 Manual Loads 0 Difficulty Rogue Special Mode None Game No. 7 Rogue 7 Adventurer 0 Explorer 0 Win Type - Total 0 Types 0/0/0/0/0/0/0/0/0/0 Lore% 5 Gallery% 12 Achievement% 14 Wizard Run 0 Options --------- Layout 1 ASCII 0 Keyboard 0 Movement Mouse Keybinds 0 Fullscreen 1 Font 32/SmallcapsGlow Map View 50x35 Zoom Use 0% Tactical HUD 1 Map Filters NONE Filters NONE Steam 1 RUN: d52c0278-97a0-4f22-ab81-792a41af2208